bitfinex/quotes_ETHUSD_20241203
["timestamp","ask_amount","ask_price","bid_price","bid_amount"]
[1733205410584,0.94003741,3658.3,3658.0,0.7994]
[1733205411491,0.94003741,3658.3,3657.3,0.826]
[1733205411701,0.94003741,3658.3,3657.5,2.73409]
[1733205411702,2.03724132,3658.2,3657.5,2.73409]
[1733205411884,2.5769381,3658.2,3657.3,0.826]
[1733205412211,0.25573265,3658.1,3657.3,0.826]
[1733205413420,2.03724132,3658.2,3657.4,2.76150887]
[1733205413706,2.29295884,3658.2,3657.4,2.76150887]
[1733205413868,2.29295884,3658.2,3657.4,2.73417]
[1733205416705,2.29295884,3658.2,3657.3,0.826]
[1733205416878,2.99011972,3658.2,3657.3,0.826]
[1733205417082,0.25573442,3658.1,3657.3,0.826]
[1733205417689,0.25573442,3658.1,3657.4,0.12350578]
[1733205420390,0.7943,3658.0,3657.4,0.12350578]
[1733205420788,0.25573442,3657.9,3657.0,3.28068744]
[1733205420989,1.06275905,3657.9,3657.5,0.12345888]
[1733205421211,0.25573442,3657.8,3657.0,3.28068744]
[1733205421688,0.25573442,3657.8,3657.1,0.12362945]
[1733205422239,0.25573442,3657.8,3657.1,2.85801945]
[1733205422432,0.25573442,3657.8,3657.2,0.02734159]
[1733205422729,0.25587746,3657.9,3657.4,2.73418]
[1733205422943,0.25587746,3658.0,3657.5,0.15108288]
[1733205423226,0.25587084,3657.9,3657.7,2.73389]
[1733205423429,3.54418908,3658.5,3657.7,2.73389]
[1733205423430,0.25587084,3658.1,3657.8,0.7552]
[1733205423632,0.25587084,3658.4,3657.8,0.7552]
[1733205423784,0.25587084,3658.3,3657.8,0.7552]
[1733205423992,0.25587084,3658.2,3657.8,0.7552]
[1733205424191,0.25587084,3658.1,3657.8,0.7552]
[1733205424433,1.14286994,3658.4,3657.8,0.7552]
[1733205424434,0.25587084,3658.3,3657.8,0.7552]
[1733205424723,0.25587084,3658.2,3657.8,0.7552]
[1733205424962,0.25587084,3658.1,3657.8,0.7552]
[1733205425129,0.25587084,3658.3,3657.8,0.7552]
[1733205425343,0.25587084,3658.2,3657.8,0.7552]
[1733205425629,0.25587084,3658.1,3657.1,0.7569]
[1733205425936,1.05197084,3658.0,3657.1,0.7569]
[1733205426136,0.25587084,3657.9,3657.2,2.73428]
[1733205427198,0.25587084,3657.8,3657.2,2.73428]
[1733205427413,2.29311216,3657.9,3657.2,2.73428]
[1733205427630,0.25587084,3657.8,3657.2,2.73428]
[1733205427838,0.25587084,3657.8,3657.1,0.7569]
[1733205428210,0.25587084,3657.7,3657.0,3.28068744]
[1733205428411,0.25587084,3657.6,3657.0,3.28068744]
[1733205428743,0.25587084,3657.5,3657.0,3.28068744]
[1733205428943,3.80825368,3657.9,3657.0,3.28068744]
[1733205428944,1.6767714,3657.8,3657.0,3.28068744]
[1733205429251,2.04362735,3657.7,3657.0,3.28068744]
[1733205429451,0.25587084,3657.6,3657.0,3.28068744]
[1733205429756,0.25587084,3657.5,3657.0,3.28068744]
[1733205429922,0.25587084,3657.4,3657.0,3.28068744]
[1733205430264,0.25587084,3657.6,3657.0,3.28068744]
[1733205430425,0.25587084,3657.5,3657.0,3.28068744]
[1733205430624,1.83029391,3657.8,3657.0,0.54622744]
[1733205430964,1.20349203,3657.7,3657.0,0.573569]
[1733205431169,0.25607802,3657.6,3657.2,2.73431]
[1733205431465,0.25607802,3657.5,3657.3,0.12381279]
[1733205431643,0.25607802,3657.7,3657.3,0.12381279]
[1733205431829,0.25607802,3657.6,3657.0,2.76175156]
[1733205432020,0.25607802,3657.5,3657.4,0.12377015]
[1733205432222,0.25607802,3657.5,3657.2,2.73433]
[1733205432418,1.42090056,3657.8,3657.4,0.12377015]
[1733205432766,0.25614613,3657.7,3657.2,2.73433]
[1733205432948,0.25614613,3657.6,3657.3,0.12381279]
[1733205433268,3.18011126,3657.9,3657.3,0.12381279]
[1733205433269,0.25614613,3657.5,3657.3,0.12381279]
[1733205433451,0.23980442,3657.9,3657.8,2.73388]
[1733205433775,2.28573989,3658.5,3658.4,2.73343]
[1733205433922,1.71430492,3659.1,3658.4,2.73343]
[1733205433923,1.71430492,3659.1,3658.9,2.73298]
[1733205434119,0.94734372,3659.0,3658.9,2.73298]
[1733205434351,1.71430492,3659.2,3658.9,2.73298]
[1733205434565,1.71430492,3659.4,3658.9,2.73298]
[1733205435272,2.53940492,3659.5,3658.9,2.73298]
[1733205435840,0.8251,3659.5,3658.9,2.73298]
[1733205436375,0.8251,3659.5,3658.4,0.7794]
[1733205436679,0.8251,3659.5,3658.8,2.73313]
[1733205437787,0.55,3659.4,3658.8,2.73313]
[1733205438097,0.55,3659.4,3658.9,2.76036797]
[1733205438393,0.55,3659.7,3658.9,2.76036797]
[1733205438690,0.55,3659.7,3658.9,2.73304]
[1733205439890,1.35646632,3659.7,3658.9,2.73304]
[1733205441793,1.35646632,3659.7,3658.7,2.73319]
[1733205441990,1.35646632,3659.7,3658.5,0.40594396]
[1733205442319,1.35646632,3659.7,3658.8,2.73309]
[1733205443408,0.55,3659.7,3658.5,0.40594396]
[1733205443744,0.55,3659.7,3658.9,2.73306]
[1733205443893,2.37664487,3659.7,3658.9,2.73306]
[1733205444091,3.52023019,3659.7,3658.9,2.73306]
[1733205444291,0.55,3659.7,3658.9,2.73306]
[1733205444603,0.55,3659.7,3659.0,0.12238921]
[1733205445178,0.55,3659.7,3658.9,2.73306]
[1733205445406,0.80507468,3659.7,3659.0,0.12238921]
[1733205445986,0.80507468,3659.7,3658.9,2.73306]
[1733205447517,0.80507468,3659.7,3659.0,2.85467877]
[1733205449208,0.80507468,3659.7,3659.0,0.12169877]
[1733205449423,1.90724214,3659.7,3659.0,0.12169877]
[1733205449592,4.46870695,3659.7,3658.8,2.73312]
[1733205449798,0.55,3659.5,3658.8,2.73312]
[1733205450206,0.55,3659.6,3658.9,0.12174138]
[1733205451270,0.55,3659.6,3659.0,2.73297]
[1733205451536,0.55,3659.7,3659.0,2.73297]
[1733205451693,0.55,3659.7,3659.1,0.12165617]
[1733205451895,0.80507468,3659.7,3659.1,0.12165617]
[1733205452095,0.80507468,3659.7,3659.1,2.85454617]
[1733205452293,0.80507468,3659.7,3659.2,2.73281]
[1733205452595,0.55,3659.7,3659.3,0.12153689]
[1733205452814,0.80507468,3659.7,3659.3,0.12153689]
[1733205453028,0.80507468,3659.7,3659.2,2.73281]
[1733205453193,0.80507468,3659.7,3659.4,0.1214943]
[1733205453543,0.80507468,3659.7,3659.3,0.12153689]
[1733205453694,0.55,3659.7,3659.4,0.1214943]
[1733205454030,0.80507468,3659.7,3659.4,0.1214943]
[1733205454202,0.7649,3659.8,3659.4,0.1214943]
[1733205455503,0.55,3659.7,3659.4,0.1214943]
[1733205455703,1.15826283,3659.7,3658.9,2.73299]
[1733205456047,0.55,3659.7,3658.9,2.73299]
[1733205456338,0.55,3659.7,3659.0,0.1215369]
[1733205457337,0.55,3659.5,3659.0,0.1215369]
[1733205457701,0.93947517,3659.4,3659.1,0.12155394]
[1733205457901,0.93947517,3659.4,3658.7,3.49289]
[1733205458099,0.93947517,3659.4,3658.8,0.5643402]
[1733205458356,0.93947517,3659.1,3658.8,0.12168175]
[1733205458517,1.3089,3659.0,3658.8,0.12168175]
[1733205458843,1.3089,3659.0,3658.1,0.54921973]
[1733205459031,0.93947517,3658.8,3658.1,0.54921973]
[1733205459338,0.55,3658.7,3658.2,0.12195874]
[1733205459650,0.55,3658.8,3658.2,0.12195874]
[1733205459804,0.55,3658.9,3658.2,0.12195874]
[1733205460002,0.55,3658.9,3658.2,0.0273331]
[1733205460229,0.55,3658.9,3658.3,2.85539612]
[1733205460431,0.55,3658.9,3658.3,2.73348]
[1733205460605,0.55,3658.9,3658.4,0.12208226]
[1733205461596,0.55,3658.9,3658.4,3.1437318]
[1733205461811,0.7589,3659.0,3658.5,2.73335]
[1733205462253,0.7589,3659.0,3658.6,0.12195016]
[1733205462745,0.7589,3659.0,3658.3,2.73348]
[1733205462746,0.25580576,3658.9,3658.7,0.12190755]
[1733205462920,0.25580576,3658.9,3658.3,2.73348]
[1733205463120,0.25580576,3658.9,3658.4,0.12203539]
[1733205463323,0.25580576,3658.8,3658.4,0.12203539]
[1733205463527,0.25580576,3658.7,3658.4,0.12203539]
[1733205463851,0.25580576,3658.6,3658.4,0.12203539]
[1733205464049,0.25580576,3658.9,3658.4,2.85546539]
[1733205464252,0.25580576,3658.8,3658.4,2.85546539]
[1733205464553,0.25580576,3658.7,3658.4,3.21687193]
[1733205464712,0.25580576,3658.6,3658.4,3.21687193]
[1733205464915,0.25580576,3658.9,3658.4,3.21687193]
[1733205465259,0.25580576,3658.8,3658.4,3.21687193]
[1733205465550,0.25580576,3658.7,3658.4,3.21687193]
[1733205465846,0.7589,3659.0,3658.4,3.21687193]
[1733205466053,0.25607128,3658.9,3658.4,3.21687193]
[1733205466215,0.25607128,3658.8,3658.4,3.21687193]
[1733205466413,0.25607128,3658.7,3658.4,3.21687193]
[1733205466663,0.25607128,3658.9,3658.4,3.21687193]
[1733205466947,0.25607128,3658.8,3658.4,3.21687193]
[1733205467140,0.25607128,3658.7,3658.4,3.21687193]
[1733205467335,0.25607128,3658.9,3658.4,3.21687193]
[1733205467536,0.25607128,3658.8,3658.4,3.21687193]
[1733205467836,0.25607128,3658.7,3658.4,3.21687193]
[1733205468009,0.25607128,3658.9,3658.4,3.21687193]
[1733205468208,0.25607128,3658.8,3658.4,3.21687193]
[1733205468444,0.25607128,3658.7,3658.4,3.21687193]
[1733205468635,0.25607128,3658.9,3658.4,3.21687193]
[1733205468834,0.25607128,3658.8,3658.4,3.21687193]
[1733205469034,0.25607128,3658.7,3658.4,3.21687193]
[1733205469239,0.25607128,3658.9,3658.5,0.39754719]
[1733205469436,0.25603201,3658.8,3658.4,2.85546539]
[1733205469816,0.25603201,3658.9,3658.6,0.12195016]
[1733205470052,0.25603201,3658.8,3658.5,0.12199278]
[1733205470365,0.25603201,3658.9,3658.6,0.12195016]
[1733205470529,0.25603201,3658.8,3658.4,2.73343]
[1733205470730,0.25603201,3658.9,3658.4,3.082633]
[1733205470961,0.25603201,3658.8,3658.5,0.12199278]
[1733205471133,0.25603201,3658.7,3658.5,0.12199278]
[1733205471319,0.25603201,3658.9,3658.5,0.12199278]
[1733205471647,0.25603201,3658.8,3658.5,0.12199278]
[1733205471860,0.25603201,3658.7,3658.5,0.12199278]
[1733205472049,0.25603201,3658.9,3658.5,0.12199278]
[1733205472256,0.25603201,3658.8,3658.5,0.12199278]
[1733205472415,0.25603201,3658.7,3658.5,0.12199278]
[1733205472762,0.25603201,3658.9,3658.4,2.73343]
[1733205473054,0.7589,3659.0,3658.5,0.12217171]
[1733205473216,0.25600816,3658.8,3658.5,0.12217171]
[1733205473416,0.25600816,3658.9,3658.5,0.12217171]
[1733205473954,0.25600816,3658.9,3658.5,2.85552171]
[1733205474255,0.25600816,3658.9,3658.5,3.21693388]
[1733205474429,0.25600816,3659.1,3658.5,3.21693388]
[1733205474624,0.25600816,3659.0,3658.5,3.21693388]
[1733205474824,0.25600816,3658.9,3658.5,3.21693388]
[1733205475026,0.25600816,3658.8,3658.5,3.21693388]
[1733205475357,0.25600816,3659.1,3658.5,3.21693388]
[1733205475523,0.25600816,3659.0,3658.5,2.85552171]
[1733205475726,0.25600816,3658.9,3658.5,2.85552171]
[1733205475960,0.25600816,3658.8,3658.5,2.85552171]
[1733205476115,0.25600816,3659.1,3658.6,0.7707]
[1733205476449,0.25600816,3659.0,3658.7,0.12208649]
[1733205476655,0.25601791,3658.9,3658.7,0.12208649]
[1733205476813,0.25601791,3659.0,3658.7,0.12208649]
[1733205477013,0.25601791,3658.9,3658.7,0.12208649]
[1733205477219,0.25601791,3659.0,3658.7,0.12208649]
[1733205477416,0.25601791,3658.9,3658.7,0.12208649]
[1733205477618,0.25601791,3658.8,3658.6,0.7707]
[1733205477816,0.25601791,3659.0,3658.8,0.12204388]
[1733205478036,0.25601791,3658.9,3658.7,0.12208649]
[1733205478332,0.25601791,3658.8,3658.6,0.7707]
[1733205478669,1.39960309,3659.0,3658.6,0.7707]
[1733205478832,1.39960309,3659.0,3657.4,2.36308809]
[1733205478833,0.25601791,3658.9,3658.2,3.53716]
[1733205479036,0.25601791,3658.8,3658.2,3.94493434]
[1733205479365,0.25601791,3658.7,3658.2,3.94493434]
[1733205480055,0.25601791,3658.7,3658.2,1.21137434]
[1733205480258,1.06314006,3658.6,3658.0,3.2742934]
[1733205480469,1.69358518,3658.5,3657.7,2.73395]
[1733205480755,1.39962524,3658.4,3657.6,1.35622005]
[1733205480970,0.25604006,3658.3,3657.9,2.73378]
[1733205481123,2.10324927,3658.5,3657.9,2.73378]
[1733205481124,0.25604006,3658.4,3657.9,2.73378]
[1733205481322,0.25604006,3658.4,3657.9,2.76111497]
[1733205481522,0.25604006,3658.4,3657.9,3.1455135]
[1733205481847,0.25604006,3658.4,3657.9,3.17284847]
[1733205482050,0.25604006,3658.4,3657.9,3.1455135]
[1733205482272,3.11659905,3658.5,3658.0,2.73372]
[1733205482273,0.25604006,3658.3,3658.0,2.73372]
[1733205482564,0.25604006,3658.2,3658.1,2.73365]
[1733205482874,0.25601135,3658.2,3658.1,4.14340385]
[1733205483049,2.32391807,3659.0,3658.1,4.14340385]
[1733205483050,1.14358518,3659.0,3658.3,2.73351]
[1733205483380,0.25595614,3658.9,3658.7,0.7618]
[1733205483562,1.14358518,3659.1,3658.7,0.7618]
[1733205483563,0.25595614,3658.8,3658.7,0.7618]
[1733205483724,0.25595614,3658.8,3658.7,3.84724904]
[1733205484565,1.14358518,3659.2,3658.8,2.73309]
[1733205484727,0.25600203,3659.1,3658.8,2.73309]
[1733205484929,0.25600203,3659.0,3658.7,1.11403904]
[1733205485138,0.25600203,3658.9,3658.7,3.84721904]
[1733205485363,1.55313104,3659.1,3658.8,0.3847219]
[1733205485565,0.25606774,3659.0,3658.8,0.3847219]
[1733205485792,0.25606774,3658.9,3658.8,0.3847219]
[1733205486085,0.25606774,3658.9,3658.8,0.50681695]
[1733205488044,0.25606774,3658.9,3658.8,3.23994695]
[1733205489632,0.25609172,3658.9,3658.8,3.23994695]
[1733205491333,0.25609172,3658.9,3658.8,3.2672755]
[1733205492035,0.25609172,3658.9,3658.8,3.23994695]
[1733205493375,0.25606241,3658.9,3658.8,3.23994695]
[1733205493747,0.25606492,3658.9,3658.8,3.23994695]
[1733205495178,0.66576496,3658.9,3658.8,3.23994695]
[1733205495489,0.25606353,3658.9,3658.8,3.23994695]
[1733205497108,0.40966557,3659.1,3658.8,0.50681695]
[1733205497310,0.25603832,3659.0,3658.9,2.73306]
[1733205497519,0.40966557,3659.6,3659.0,0.7598]
[1733205497675,0.6656673,3659.5,3658.9,0.12165194]
[1733205497871,2.74904107,3659.4,3659.1,0.12156673]
[1733205498111,0.6656673,3659.3,3658.8,2.73311]
[1733205498289,2.08337377,3659.4,3659.2,0.12152413]
[1733205498470,1.80923653,3659.3,3658.7,3.49297]
[1733205498671,1.76708859,3659.1,3658.5,0.53606453]
[1733205498978,0.66565135,3659.0,3658.4,2.73338]
[1733205499305,0.66565135,3658.9,3658.4,3.46909339]
[1733205499476,0.66565135,3658.8,3658.4,3.46909339]
[1733205499829,0.25601975,3658.7,3658.4,3.46909339]
[1733205500151,0.4096316,3659.0,3658.4,4.01094819]
[1733205500318,0.66566929,3658.9,3658.4,4.01094819]
[1733205500615,1.76708859,3659.1,3658.4,4.01094819]
[1733205500813,0.25603446,3658.8,3658.4,4.01094819]
[1733205501016,0.25603446,3658.7,3658.5,0.47707482]
[1733205501179,0.25604386,3658.6,3658.5,0.47707482]
[1733205501384,0.25604386,3658.6,3658.5,3.21043482]
[1733205501891,0.40965514,3659.0,3658.5,3.21043482]
[1733205502080,0.66569632,3658.9,3658.5,3.21043482]
[1733205502282,0.25604118,3658.8,3658.5,0.47707482]
[1733205502487,0.25604118,3658.7,3658.4,0.73571339]
[1733205502793,0.25604118,3658.6,3658.5,2.73336]
[1733205503295,0.40965514,3658.9,3658.5,2.73336]
[1733205503612,0.25604917,3658.8,3658.5,2.73336]
[1733205503949,0.25604917,3658.7,3658.5,2.73336]
[1733205504150,0.25604917,3658.6,3658.5,2.73336]
[1733205504604,0.25604917,3658.6,3658.4,0.73571339]
[1733205504808,0.2560585,3658.5,3658.3,4.0444011]
[1733205505008,0.40965514,3658.9,3658.3,4.0444011]
[1733205505204,0.6657201,3658.8,3658.3,4.0444011]
[1733205505442,0.25606496,3658.7,3658.3,4.0444011]
[1733205505743,0.25606496,3658.6,3658.3,3.49329]
[1733205505947,0.25606496,3658.5,3658.3,3.49329]
[1733205506118,0.40965514,3658.8,3658.3,2.73349]
[1733205506319,0.25605955,3658.7,3658.3,2.73349]
[1733205506534,0.25605955,3658.6,3658.3,3.45200171]
[1733205506742,0.25605955,3658.5,3658.3,3.45200171]
[1733205507058,2.56636611,3659.0,3658.3,3.45200171]
[1733205507059,0.40965514,3658.9,3658.3,3.45200171]
[1733205507258,0.66572019,3658.8,3658.4,2.73343]
[1733205507468,0.25606505,3658.7,3658.4,3.49297024]
[1733205507691,0.25606505,3658.6,3658.4,3.49297024]
[1733205507828,2.56636611,3659.0,3658.5,0.12220579]
[1733205508170,0.66576146,3658.9,3658.5,0.12220579]
[1733205508340,0.66576146,3658.8,3658.5,0.12220579]
[1733205508545,0.25606155,3658.7,3658.5,0.12220579]
[1733205508865,0.25606155,3658.6,3658.5,3.67596579]
[1733205509077,0.25606155,3658.6,3658.5,4.17753019]
[1733205509426,0.25606778,3658.6,3658.5,4.17753019]
[1733205513471,0.25606778,3658.6,3658.5,3.35713019]
[1733205513969,0.25606778,3658.6,3658.5,0.12220579]
[1733205514952,0.25627967,3658.6,3658.5,0.12220579]
[1733205515678,1.01457967,3658.6,3658.5,0.12220579]
[1733205515902,1.42463193,3658.6,3658.5,0.12220579]
[1733205516487,1.42463193,3658.6,3658.2,3.28637683]
[1733205516675,0.25627967,3658.5,3658.2,2.73357]
[1733205516875,0.25627967,3658.4,3658.2,2.73357]
[1733205517081,0.7583,3658.6,3658.2,2.73357]
[1733205517082,0.25627967,3658.3,3658.2,3.09447433]
[1733205517257,0.7583,3658.6,3658.2,3.09447433]
[1733205517581,0.25625446,3658.5,3658.2,3.09447433]
[1733205517778,0.25625446,3658.4,3658.2,3.09447433]
[1733205518078,0.7583,3658.6,3658.2,3.09447433]
[1733205518256,0.25624771,3658.5,3658.2,3.09447433]
[1733205518452,0.7583,3658.6,3658.2,3.09447433]
[1733205518683,0.25624816,3658.5,3658.2,3.09447433]
[1733205518881,0.7583,3658.6,3658.3,0.36924828]
[1733205519067,0.256248,3658.5,3658.3,0.36924828]
[1733205519276,0.25624623,3658.4,3658.3,0.36924828]
[1733205522684,0.25624623,3658.4,3658.3,0.49165436]
[1733205523374,0.25624623,3658.4,3658.3,0.12240608]
[1733205523795,0.66622111,3658.4,3658.0,2.79608329]
[1733205524101,0.25622709,3658.3,3658.0,0.06237329]
[1733205524305,0.25622709,3658.2,3658.1,0.12249133]
[1733205525769,0.25618576,3658.2,3658.1,0.12249133]
[1733205528272,1.19597435,3658.2,3658.1,0.12249133]
[1733205528470,2.41741161,3658.2,3658.1,0.12249133]
[1733205528691,2.00757435,3658.2,3658.1,0.12249133]
[1733205528891,3.84070736,3658.2,3658.1,0.12249133]
[1733205529291,2.41716305,3658.2,3658.1,0.12249133]
[1733205529609,1.47737446,3658.2,3657.5,3.28350004]
[1733205529794,1.22130736,3658.2,3658.1,0.12283227]
[1733205530106,1.47737593,3658.2,3658.1,0.12283227]
[1733205530266,1.47737593,3658.2,3657.5,3.28350004]
[1733205530474,0.25606857,3658.1,3657.6,0.12304542]
[1733205530690,0.25606857,3658.0,3657.6,0.12304542]
[1733205530902,0.25606857,3657.9,3657.7,0.41652455]
[1733205531210,1.22130736,3658.2,3657.7,0.53952734]
[1733205531411,0.25598174,3658.1,3657.7,0.53952734]
[1733205531708,0.25598174,3658.0,3657.7,0.53952734]
[1733205531912,0.25598095,3657.9,3657.7,0.53952734]
[1733205532121,0.8116,3658.2,3657.8,0.38230274]
[1733205532270,0.8116,3658.2,3657.8,0.50526289]
[1733205532271,0.25595593,3658.1,3657.8,0.50526289]
[1733205532476,0.25595593,3658.0,3657.8,0.50526289]
[1733205532671,0.8116,3658.2,3657.8,0.50526289]
[1733205533011,0.2559479,3658.1,3658.0,0.753]
[1733205533207,0.2559479,3658.1,3658.0,0.40193991]
[1733205533369,0.40970736,3658.5,3658.0,0.12291326]
[1733205533574,0.7514,3658.3,3657.5,1.30240004]
[1733205533808,0.25593624,3658.2,3658.1,0.12287063]
[1733205534026,0.25593624,3658.2,3657.5,1.30240004]
[1733205534395,0.25593624,3658.1,3657.5,1.30240004]
[1733205534571,0.25593624,3658.0,3657.6,0.12308378]
[1733205534771,0.25593624,3657.9,3657.6,0.12308378]
[1733205534972,0.25593624,3657.8,3657.6,0.12308378]
[1733205535277,0.25593624,3657.7,3657.6,0.12308378]
[1733205535505,0.93978859,3658.1,3657.6,0.12308378]
[1733205535700,0.25589228,3658.0,3657.6,0.12308378]
[1733205535868,0.25589228,3657.9,3657.6,0.12308378]
[1733205536070,0.25588934,3657.8,3657.6,0.12308378]
[1733205536309,0.25585969,3658.0,3657.6,0.12308378]
[1733205536516,0.25586132,3657.9,3657.6,0.12308378]
[1733205536716,0.93978859,3658.1,3657.6,0.12308378]
[1733205536886,0.25586045,3658.0,3657.6,0.12308378]
[1733205537081,0.25586045,3657.9,3657.6,0.12308378]
[1733205537318,0.93978859,3658.1,3657.6,0.12308378]
[1733205537530,0.25584251,3658.0,3657.6,0.12308378]
[1733205537835,0.25584251,3657.9,3657.6,0.12308378]
[1733205538047,0.25584449,3657.8,3657.6,0.12308378]
[1733205538193,0.93978859,3658.1,3657.6,0.12308378]
[1733205538397,0.25581042,3658.0,3657.6,0.12308378]
[1733205538633,0.93978859,3658.1,3657.6,0.12308378]
[1733205538634,0.25581042,3657.9,3657.6,0.12308378]
[1733205538835,0.93978859,3658.1,3657.6,0.12308378]
[1733205539019,0.25580199,3658.0,3657.6,0.12308378]
[1733205539211,0.93978859,3658.1,3657.6,0.12308378]
[1733205539544,0.25580531,3658.0,3657.6,0.12308378]
[1733205539842,0.25580531,3657.9,3657.6,0.12308378]
[1733205540005,0.93978859,3658.1,3657.6,0.12308378]
[1733205540216,0.25580326,3658.0,3657.7,0.02733806]
[1733205540410,0.25579397,3658.2,3657.6,0.54282043]
[1733205540616,0.25579397,3658.1,3657.8,0.12299851]
[1733205540912,1.34949595,3658.5,3657.9,0.12295588]
[1733205541236,0.25579143,3658.4,3657.6,0.41973665]
[1733205541583,0.25579143,3658.3,3657.7,0.12304115]
[1733205541833,0.25579143,3658.2,3657.7,0.12304115]
[1733205542040,0.93978859,3658.5,3657.7,0.12304115]
[1733205542197,0.25580502,3658.4,3657.7,0.52876541]
[1733205542541,0.25580502,3658.3,3657.8,2.73384]
[1733205542749,0.25580502,3658.2,3657.8,2.73384]
[1733205542900,0.93978859,3658.5,3657.9,0.12304538]
[1733205543232,0.25581769,3658.4,3657.9,0.12304538]
[1733205543438,0.25581769,3658.3,3657.9,0.12304538]
[1733205543593,0.25581769,3658.2,3657.9,0.12304538]
[1733205543798,0.25581769,3658.1,3657.9,0.12304538]
[1733205543997,0.25581769,3658.0,3657.9,0.12304538]
[1733205544723,0.25581769,3658.0,3657.7,3.13966426]
[1733205545040,0.40970736,3658.4,3657.9,0.12304538]
[1733205545204,0.66559345,3658.3,3657.8,0.12308801]
[1733205545417,0.25588609,3658.2,3658.0,0.12300276]
[1733205545727,0.25588609,3658.1,3657.8,2.73384]
[1733205545928,0.2559177,3658.0,3657.8,2.73384]
[1733205546133,1.34925691,3658.5,3657.9,2.7338]
[1733205546339,0.25591375,3658.4,3657.9,2.7338]
[1733205546656,0.25591375,3658.3,3657.9,2.7338]
[1733205546838,0.25591375,3658.2,3657.7,0.02733677]
[1733205547045,0.25591375,3658.1,3657.8,2.73387]
[1733205547217,0.40946832,3658.4,3657.8,2.73387]
[1733205547424,0.25594697,3658.3,3657.8,2.73387]
[1733205547626,0.25594697,3658.2,3657.8,2.73387]
[1733205547966,0.25594697,3658.1,3657.8,2.73387]
[1733205548274,0.25594697,3658.0,3657.8,2.73387]
[1733205548420,0.40946832,3658.3,3657.8,2.73387]
[1733205548616,0.25597705,3658.2,3657.8,2.73387]
[1733205548867,0.25597705,3658.1,3657.8,2.73387]
[1733205549017,0.25597705,3658.0,3657.8,2.73387]
[1733205549361,0.40946832,3658.3,3657.8,2.73387]
[1733205549554,0.25602027,3658.2,3657.8,2.73387]
[1733205549867,0.25602027,3658.1,3657.8,2.73387]
[1733205550049,0.25602027,3658.0,3657.8,2.73387]
[1733205550248,2.5650802,3658.5,3657.8,2.73387]
[1733205550249,0.25602027,3657.9,3657.8,2.73387]
[1733205551576,0.25606762,3657.9,3657.8,0.35142068]
[1733205551727,0.40946832,3658.3,3657.7,2.73395]
[1733205552057,2.56508425,3658.5,3657.7,2.73395]
[1733205552058,0.66554222,3658.2,3657.7,2.73395]
[1733205552362,0.2560739,3658.1,3657.8,0.12308801]
[1733205552658,0.2560739,3658.0,3657.8,2.73381]
[1733205552873,0.40980054,3658.3,3657.9,2.85687095]
[1733205553079,0.25610985,3658.2,3657.9,2.85687095]
[1733205553284,0.25610985,3658.1,3657.9,2.85687095]
[1733205553576,0.25610985,3658.0,3657.9,2.85687095]
[1733205553748,0.25610985,3658.0,3657.9,3.14529172]
[1733205556272,1.01030985,3658.0,3657.9,0.12307095]
[1733205556465,0.66606332,3658.0,3657.9,0.12307095]
[1733205556683,0.66606332,3658.0,3657.6,3.50756]
[1733205556861,0.66606332,3657.9,3657.6,0.7736]
[1733205557056,0.25610985,3657.8,3657.7,2.85707638]
[1733205559245,0.25610985,3657.8,3657.7,4.01994402]
[1733205559445,1.89540653,3658.6,3658.1,2.73365]
[1733205559446,0.40999761,3658.2,3658.1,2.73365]
[1733205559674,0.25618651,3658.2,3658.1,2.73365]
[1733205559985,0.409872,3658.7,3658.5,2.73331]
[1733205560182,0.66606202,3658.6,3658.5,2.73331]
[1733205560693,0.2561777,3658.6,3658.5,2.73331]
[1733205560895,0.2561777,3658.6,3658.5,2.85608686]
[1733205561268,0.66606202,3658.6,3658.5,2.85608686]
[1733205561475,0.2561777,3658.6,3658.5,2.85608686]
[1733205563809,0.25597665,3658.6,3658.5,2.85608686]
[1733205564011,0.25597665,3658.6,3658.5,0.12277686]
[1733205564368,0.25597665,3658.6,3658.3,2.7335]
[1733205564688,0.40956264,3658.7,3658.4,0.12281947]
[1733205564890,0.25595138,3658.6,3658.4,0.12281947]
[1733205565068,0.25595138,3658.5,3658.4,0.12281947]
[1733205565499,0.25595138,3658.5,3658.3,2.7335]
[1733205565701,0.25595138,3658.4,3658.3,2.7335]
[1733205566502,0.25595138,3658.4,3658.3,2.85596148]
[1733205566864,0.25595138,3658.4,3658.3,0.12246148]
[1733205567065,0.25595138,3658.4,3657.9,2.7338]
[1733205567302,0.25595138,3658.3,3657.9,2.7338]
[1733205567506,0.25595138,3658.2,3658.1,2.73364]
[1733205567804,0.8183,3658.5,3658.1,2.85619525]
[1733205567964,0.25595579,3658.4,3658.1,2.85619525]
[1733205568161,0.25595579,3658.3,3658.1,2.85619525]
[1733205568408,0.8183,3658.5,3658.1,2.85619525]
[1733205568570,0.25597024,3658.4,3658.1,2.85619525]
[1733205568775,0.25597024,3658.3,3658.1,2.85619525]
[1733205569122,0.8183,3658.5,3658.1,2.85619525]
[1733205569408,0.2559734,3658.4,3658.1,2.85619525]
[1733205569569,0.2559734,3658.3,3658.1,2.85619525]
[1733205569904,0.40956264,3658.6,3658.1,2.85620525]
[1733205570109,0.25596625,3658.5,3658.2,2.73353]
[1733205570311,0.25596625,3658.4,3658.3,0.12247001]
[1733205570601,0.25596625,3658.4,3658.3,2.85598001]
[1733205571998,0.25596625,3658.4,3658.3,3.22473801]
[1733205575452,0.40943123,3658.9,3658.8,2.73309]
[1733205575749,0.25588674,3658.9,3658.8,0.12223563]
[1733205575913,0.25588674,3658.9,3658.8,0.14956385]
[1733205576517,0.25588674,3658.9,3658.8,2.88262385]
[1733205576825,0.25588674,3658.9,3658.8,2.85529563]
[1733205577456,0.25588674,3658.9,3658.8,0.12223563]
[1733205577743,0.45720427,3658.9,3658.4,2.73343]
[1733205577949,0.25588674,3658.9,3658.8,0.12208648]
[1733205578249,1.60497499,3658.9,3658.4,2.73343]
[1733205578447,0.6651864,3658.8,3658.4,2.73343]
[1733205578749,0.25577992,3658.7,3658.4,2.73343]
[1733205578929,0.25577992,3658.6,3658.4,2.73343]
[1733205579117,0.25577992,3658.5,3658.4,2.73343]
[1733205579314,1.34919507,3658.9,3658.4,2.73343]
[1733205579516,0.66518835,3658.8,3658.4,2.73343]
[1733205579712,0.25578187,3658.7,3658.4,2.73343]
[1733205579945,0.25578187,3658.6,3658.4,2.73343]
[1733205580150,0.25578187,3658.5,3658.4,2.73343]
[1733205580645,1.34919507,3658.9,3658.2,0.54226571]
[1733205580814,0.25578681,3658.8,3658.5,2.73335]
[1733205581149,0.25578681,3658.7,3658.3,2.73349]
[1733205581307,0.25578681,3658.6,3658.4,2.73341]
[1733205581509,0.93978859,3658.9,3658.5,2.73336]